bitfinex-derivatives/quotes_BNBF0:USTF0_20241230
["timestamp","ask_amount","ask_price","bid_price","bid_amount"]
[1735578493105,0.9144058,694.83,694.34,1.06987589]
[1735578493409,0.9144058,694.82,694.34,1.06987589]
[1735578494009,0.9144058,694.81,694.34,1.06987589]
[1735578494305,0.9144058,694.81,694.32,1.06987589]
[1735578494509,0.9144058,694.8,694.32,1.06987589]
[1735578494809,0.9144058,694.79,694.32,1.06987589]
[1735578495111,0.9144058,694.78,694.32,1.06987589]
[1735578495306,0.9144058,694.77,694.32,1.06987589]
[1735578495707,0.9144058,694.76,694.32,1.06987589]
[1735578495908,0.9144058,694.76,693.66,2.18432994]
[1735578495909,0.9144058,694.76,694.34,1.06987589]
[1735578496306,0.9144058,694.75,694.34,1.06987589]
[1735578496709,0.9144058,694.74,694.34,1.06987589]
[1735578496909,0.9144058,694.73,694.34,1.06987589]
[1735578497109,0.9144058,694.73,694.38,1.06987589]
[1735578497510,0.9144058,694.72,694.38,1.06987589]
[1735578497910,0.9144058,694.71,694.38,1.06987589]
[1735578498110,0.9144058,694.7,694.41,1.06987589]
[1735578498514,0.9144058,694.69,694.41,1.06987589]
[1735578498910,0.9144058,694.68,694.41,1.06987589]
[1735578499412,1.50325056,694.97,694.5,1.06987589]
[1735578499807,0.91426349,694.96,694.5,1.06987589]
[1735578500205,0.91426349,694.95,694.5,1.06987589]
[1735578500406,0.91426349,694.95,694.55,1.06987589]
[1735578500612,0.91426349,694.94,694.55,1.06987589]
[1735578501013,0.91426349,694.93,694.55,1.06987589]
[1735578501213,0.91426349,694.92,694.55,1.06987589]
[1735578501414,0.28767872,695.22,694.55,1.06987589]
[1735578501415,0.91426349,694.91,694.55,1.06987589]
[1735578501615,0.91426349,694.91,694.62,1.06987589]
[1735578501810,1.50286105,695.16,694.62,1.06987589]
[1735578501811,0.91426349,694.9,694.62,1.06987589]
[1735578502012,0.91426349,694.89,694.62,1.06987589]
[1735578502415,0.91426349,694.88,694.62,1.06987589]
[1735578502915,1.50286105,695.16,694.62,1.06987589]
[1735578502916,0.91426349,694.87,694.62,1.06987589]
[1735578503116,0.91426349,694.86,694.69,1.06987589]
[1735578503311,0.91426349,694.85,694.69,1.06987589]
[1735578503514,1.50286105,695.16,694.69,1.06987589]
[1735578503915,0.91356827,695.15,694.69,1.06987589]
[1735578504116,0.91356827,695.14,694.69,1.06987589]
[1735578504315,1.50286105,695.16,694.69,1.06987589]
[1735578504316,0.91356827,695.13,694.69,1.06987589]
[1735578504518,0.91356827,695.13,694.65,1.06987589]
[1735578504711,0.91356827,695.12,694.65,1.06987589]
[1735578505111,0.91356827,695.11,694.65,1.06987589]
[1735578505317,0.91356827,695.1,694.65,1.06987589]
[1735578505717,0.91356827,695.09,694.65,1.06987589]
[1735578505910,0.91356827,695.08,694.65,1.06987589]
[1735578506311,0.91356827,695.07,694.65,1.06987589]
[1735578506518,0.91356827,695.06,694.65,1.06987589]
[1735578506720,0.91356827,695.06,694.51,1.06987589]
[1735578506918,0.91356827,695.05,694.51,1.06987589]
[1735578507118,0.91356827,695.04,694.51,1.06987589]
[1735578507518,0.91356827,695.03,694.51,1.06987589]
[1735578507716,0.91356827,695.02,694.58,1.06987589]
[1735578507911,0.91356827,695.01,694.58,1.06987589]
[1735578508314,0.91356827,695.0,694.58,1.06987589]
[1735578508716,0.91356827,694.99,694.57,1.06987589]
[1735578508918,0.91356827,694.98,694.57,1.06987589]
[1735578509316,0.91356827,694.97,694.57,1.06987589]
[1735578509516,0.91356827,694.96,694.57,1.06987589]
[1735578510015,0.91356827,694.95,694.55,1.06987589]
[1735578510517,0.91356827,694.94,694.55,1.06987589]
[1735578510715,0.91356827,694.93,694.5,1.06987589]
[1735578510921,0.91356827,694.92,694.5,1.06987589]
[1735578511324,0.91356827,694.91,694.5,1.06987589]
[1735578511525,0.91356827,694.9,694.5,1.06987589]
[1735578511828,0.91356827,694.89,694.5,1.06987589]
[1735578512027,0.91356827,694.88,694.49,1.06987589]
[1735578512424,1.50286105,695.16,694.49,1.06987589]
[1735578512927,0.91244004,695.15,694.49,1.06987589]
[1735578513327,0.91244004,695.14,694.49,1.06987589]
[1735578513519,0.91244004,695.13,694.49,1.06987589]
[1735578513925,0.91244004,695.12,694.49,1.06987589]
[1735578514124,0.91244004,695.11,694.49,1.06987589]
[1735578514328,0.91244004,695.1,694.47,1.06987589]
[1735578514622,0.91244004,695.09,694.47,1.06987589]
[1735578515029,0.91244004,695.08,694.47,1.06987589]
[1735578515223,0.91244004,695.07,694.47,1.06987589]
[1735578515426,0.91244004,695.06,694.47,1.06987589]
[1735578515729,0.91244004,695.05,694.48,1.06987589]
[1735578516030,0.91244004,695.04,694.48,1.06987589]
[1735578516330,0.91244004,695.03,694.48,1.06987589]
[1735578516531,0.91244004,695.03,694.42,1.06987589]
[1735578516728,0.91244004,695.02,694.42,1.06987589]
[1735578517128,0.91244004,695.01,694.42,1.06987589]
[1735578517330,0.91244004,695.0,694.42,1.06987589]
[1735578517525,0.91244004,694.99,694.42,1.06987589]
[1735578517927,0.91244004,694.98,694.42,1.06987589]
[1735578518127,0.91244004,694.97,694.4,1.06987589]
[1735578518533,0.91244004,694.96,694.4,1.06987589]
[1735578518833,1.50286105,695.16,694.4,1.06987589]
[1735578519234,0.91192692,695.15,694.4,1.06987589]
[1735578519534,0.91192692,695.14,694.35,1.06987589]
[1735578520033,0.91192692,695.13,694.35,1.06987589]
[1735578520229,0.91192692,695.12,694.35,1.06987589]
[1735578520628,0.91192692,695.11,694.35,1.06987589]
[1735578521026,0.91192692,695.11,693.79,0.76058621]
[1735578521027,0.91192692,695.1,694.3,1.06987589]
[1735578521427,0.91192692,695.09,694.3,1.06987589]
[1735578521630,0.91192692,695.08,694.3,1.06987589]
[1735578522035,0.91192692,695.07,694.32,1.06987589]
[1735578522336,0.91192692,695.06,694.32,1.06987589]
[1735578522935,0.91192692,695.05,694.32,1.06987589]
[1735578523332,0.91192692,695.04,694.32,1.06987589]
[1735578523735,0.91192692,695.03,694.32,1.06987589]
[1735578524131,0.91192692,695.02,694.32,1.06987589]
[1735578524537,0.91192692,695.01,694.32,1.06987589]
[1735578524837,0.91192692,695.0,694.32,1.06987589]
[1735578525232,1.50305037,695.04,694.32,1.06987589]
[1735578525233,0.91192692,694.99,694.32,1.06987589]
[1735578525435,0.91192692,694.98,694.32,1.06987589]
[1735578525839,0.91192692,694.97,694.41,1.06987589]
[1735578526031,0.91192692,694.96,694.41,1.06987589]
[1735578526436,0.91192692,694.95,694.41,1.06987589]
[1735578526634,0.91192692,694.94,694.41,1.06987589]
[1735578527038,0.91192692,694.93,694.41,1.06987589]
[1735578527241,0.91192692,694.92,694.39,1.06987589]
[1735578527638,0.91192692,694.91,694.39,1.06987589]
[1735578528134,0.91192692,694.9,694.39,1.06987589]
[1735578528340,0.91192692,694.89,694.41,1.06987589]
[1735578528842,0.91192692,694.88,694.41,1.06987589]
[1735578529035,0.91192692,694.87,694.41,1.06987589]
[1735578529240,0.91192692,694.87,694.4,1.06987589]
[1735578529437,0.91192692,694.86,694.4,1.06987589]
[1735578529638,0.91192692,694.85,694.4,1.06987589]
[1735578530041,0.91192692,694.84,694.4,1.06987589]
[1735578530243,0.91192692,694.83,694.4,1.06987589]
[1735578530443,0.91192692,694.83,694.21,1.06987589]
[1735578530444,0.91192692,694.83,694.43,1.06987589]
[1735578530638,0.91192692,694.82,694.43,1.06987589]
[1735578530838,1.50305037,695.04,694.43,1.06987589]
[1735578530839,0.91192692,694.81,694.43,1.06987589]
[1735578531240,0.91192692,694.8,694.43,1.06987589]
[1735578531441,0.91192692,694.79,694.43,1.06987589]
[1735578531644,0.91192692,694.79,694.47,1.06987589]
[1735578531944,1.50305037,695.04,694.47,1.06987589]
[1735578532340,0.91184967,695.03,694.47,1.06987589]
[1735578532543,0.91184967,695.02,694.47,1.06987589]
[1735578532738,0.91184967,695.02,694.48,1.06987589]
[1735578532939,0.91184967,695.01,694.48,1.06987589]
[1735578533340,0.91184967,695.0,694.48,1.06987589]
[1735578533740,0.91184967,694.99,694.48,1.06987589]
[1735578533941,0.91184967,694.98,694.52,1.06987589]
[1735578534446,0.91184967,694.97,694.52,1.06987589]
[1735578534846,0.91184967,694.96,694.52,1.06987589]
[1735578535041,2.41490545,694.96,694.53,1.06987589]
[1735578535242,0.91184967,694.95,694.53,1.06987589]
[1735578535645,0.91184967,694.94,694.53,1.06987589]
[1735578535843,0.91184967,694.93,694.53,1.06987589]
[1735578536241,0.91184967,694.92,694.53,1.06987589]
[1735578536447,0.91184967,694.91,694.51,1.06987589]
[1735578536848,0.91184967,694.9,694.51,1.06987589]
[1735578537048,0.91184967,694.89,694.51,1.06987589]
[1735578537248,1.50305578,694.96,694.51,1.06987589]
[1735578537249,0.91184967,694.88,694.51,1.06987589]
[1735578537749,0.91184967,694.87,694.48,1.06987589]
[1735578538149,1.50305578,694.96,694.48,1.06987589]
[1735578538150,0.91184967,694.86,694.48,1.06987589]
[1735578538649,0.91184967,694.85,694.48,1.06987589]
[1735578538850,0.91184967,694.85,694.49,1.06987589]
[1735578539049,0.91184967,694.84,694.49,1.06987589]
[1735578539447,0.91184967,694.83,694.49,1.06987589]
[1735578539845,0.91184967,694.82,694.49,1.06987589]
[1735578540050,1.5030125,695.08,694.02,1.06987589]
[1735578540051,0.91184967,694.81,694.02,1.06987589]
[1735578540352,1.5030125,695.08,694.02,1.06987589]
[1735578540749,0.91177904,695.07,694.02,1.06987589]
[1735578541252,0.91177904,695.06,694.1,1.06987589]
[1735578541453,0.91177904,695.05,694.1,1.06987589]
[1735578541952,0.91177904,695.04,694.1,1.06987589]
[1735578542155,0.91177904,695.03,694.1,1.06987589]
[1735578542452,0.91177904,695.03,694.25,1.06987589]
[1735578542653,0.91177904,695.02,694.25,1.06987589]
[1735578543049,0.91177904,695.01,694.25,1.06987589]
[1735578543553,0.28767872,695.22,694.25,1.06987589]
[1735578543952,0.91147932,695.21,694.25,1.06987589]
[1735578544151,0.91147932,695.2,694.25,1.06987589]
[1735578544347,0.91147932,695.2,694.32,1.06987589]
[1735578544551,0.91147932,695.19,694.32,1.06987589]
[1735578544753,0.91147932,695.18,694.32,1.06987589]
[1735578545257,0.91147932,695.17,694.8,1.06987589]
[1735578545457,0.28767872,695.22,694.8,1.06987589]
[1735578546455,0.28767872,695.22,694.81,1.06987589]
[1735578547555,0.28767872,695.22,694.76,1.06987589]
[1735578548349,0.28767872,695.22,694.17,2.18432994]
[1735578548350,0.28767872,695.22,694.75,1.06987589]
[1735578548754,1.50260689,695.44,694.75,1.06987589]
[1735578548954,0.91018362,695.43,694.75,1.06987589]
[1735578549455,0.91018362,695.42,694.75,1.06987589]
[1735578549656,0.91018362,695.42,694.77,1.06987589]
[1735578549857,0.91018362,695.41,694.77,1.06987589]
[1735578550254,0.91018362,695.4,694.77,1.06987589]
[1735578550451,0.91018362,695.39,694.77,1.06987589]
[1735578550758,0.91018362,695.39,694.2,2.18432994]
[1735578550759,0.91018362,695.38,694.74,1.06987589]
[1735578550959,1.50206642,695.53,694.74,1.06987589]
[1735578551159,0.9096179,695.52,694.74,1.06987589]
[1735578551457,0.9096179,695.51,694.74,1.06987589]
[1735578551860,1.50206642,695.53,694.19,1.28385107]
[1735578551861,0.9096179,695.5,694.72,1.06987589]
[1735578552054,0.9096179,695.49,694.72,1.06987589]
[1735578552260,0.9096179,695.48,694.72,1.06987589]
[1735578552558,0.9096179,695.47,694.72,1.06987589]
[1735578552760,0.9096179,695.46,694.72,1.06987589]
[1735578553153,0.9096179,695.46,694.08,0.75761658]
[1735578553154,0.9096179,695.45,694.68,1.06987589]
[1735578553360,0.9096179,695.44,694.68,1.06987589]
[1735578553855,0.9096179,695.43,694.68,1.06987589]
[1735578554061,0.9096179,695.43,694.57,1.06987589]
[1735578554463,0.9096179,695.42,694.57,1.06987589]
[1735578554657,0.9096179,695.41,694.57,1.06987589]
[1735578555056,0.9096179,695.4,694.57,1.06987589]
[1735578555262,0.9096179,695.39,694.55,1.06987589]
[1735578555660,0.9096179,695.38,694.55,1.06987589]
[1735578555858,0.9096179,695.37,694.55,1.06987589]
[1735578556255,0.9096179,695.36,694.55,1.06987589]
[1735578556461,0.9096179,695.35,694.55,1.06987589]
[1735578556758,0.9096179,695.34,694.51,1.06987589]
[1735578557162,0.9096179,695.33,694.51,1.06987589]
[1735578557560,0.9096179,695.32,694.51,1.06987589]
[1735578557959,1.50206642,695.53,694.53,1.06987589]
[1735578558162,0.90907828,695.52,694.53,1.06987589]
[1735578558560,0.90907828,695.51,694.53,1.06987589]
[1735578558763,0.90907828,695.5,694.53,1.06987589]
[1735578559065,0.90907828,695.49,694.54,1.06987589]
[1735578559267,0.90907828,695.48,694.54,1.06987589]
[1735578559662,0.90907828,695.47,694.54,1.06987589]
[1735578560066,0.90907828,695.46,694.54,1.06987589]
[1735578560466,0.90907828,695.45,694.54,1.06987589]
[1735578560666,0.90907828,695.45,694.57,1.06987589]
[1735578560968,0.90907828,695.44,694.57,1.06987589]
[1735578561362,0.90907828,695.43,694.57,1.06987589]
[1735578561565,0.90907828,695.42,694.57,1.06987589]
[1735578561968,0.90907828,695.41,694.57,1.06987589]
[1735578562269,1.50206642,695.53,694.57,1.06987589]
[1735578562867,0.9082473,695.52,694.57,1.06987589]
[1735578563066,0.9082473,695.51,694.58,1.06987589]
[1735578563469,0.9082473,695.5,694.58,1.06987589]
[1735578563665,0.9082473,695.49,694.58,1.06987589]
[1735578564071,0.9082473,695.49,694.28,1.06987589]
[1735578564072,0.9082473,695.48,694.59,1.06987589]
[1735578564471,0.9082473,695.47,694.59,1.06987589]
[1735578564666,0.9082473,695.46,694.59,1.06987589]
[1735578565065,1.50222312,695.45,694.59,1.06987589]
[1735578565270,2.41047042,695.45,694.59,1.06987589]
[1735578565468,0.9082473,695.44,694.55,1.06987589]
[1735578565867,0.9082473,695.43,694.55,1.06987589]
[1735578566174,0.9082473,695.42,694.55,1.06987589]
[1735578566769,0.9082473,695.41,694.6,1.06987589]
[1735578566967,0.9082473,695.4,694.6,1.06987589]
[1735578567368,0.9082473,695.39,694.6,1.06987589]
[1735578567572,0.9082473,695.38,694.6,1.06987589]
[1735578567972,0.9082473,695.37,694.6,1.06987589]
[1735578568169,1.06616021,696.54,694.6,1.06987589]
[1735578568372,1.50217448,695.53,694.6,1.06987589]
[1735578568569,0.28714179,696.52,694.6,1.06987589]
[1735578568770,0.90769504,695.52,694.6,1.06987589]
[1735578569072,0.28714179,696.52,694.66,1.06987589]
[1735578569073,0.90769504,695.51,694.66,1.06987589]
[1735578569569,0.90769504,695.5,694.66,1.06987589]
[1735578569774,0.90769504,695.49,694.64,1.06987589]
[1735578570169,0.90769504,695.48,694.64,1.06987589]
[1735578570372,0.90769504,695.47,694.64,1.06987589]
[1735578570775,0.90769504,695.46,694.64,1.06987589]
[1735578570976,0.90769504,695.46,694.63,1.06987589]
[1735578571274,0.90769504,695.45,694.63,1.06987589]
[1735578571673,0.90769504,695.44,694.63,1.06987589]
[1735578571968,1.50217989,695.48,694.63,1.06987589]
[1735578571969,0.90769504,695.43,694.63,1.06987589]
[1735578572173,0.90769504,695.43,694.69,1.06987589]
[1735578572376,1.50217989,695.48,694.69,1.06987589]
[1735578572377,0.90769504,695.42,694.69,1.06987589]
[1735578572677,0.90769504,695.41,694.69,1.06987589]
[1735578572975,0.90769504,695.4,694.69,1.06987589]
[1735578573170,0.90769504,695.39,694.69,1.06987589]
[1735578573578,1.50217989,695.48,694.73,1.06987589]
[1735578573876,0.90752911,695.47,694.73,1.06987589]
[1735578574269,0.90752911,695.46,694.73,1.06987589]
[1735578574473,0.90752911,695.45,694.73,1.06987589]
[1735578574977,0.90752911,695.44,694.82,1.06987589]
[1735578575177,0.90752911,695.43,694.82,1.06987589]
[1735578575677,0.90752911,695.42,694.82,1.06987589]
[1735578575876,0.90752911,695.41,694.94,1.06987589]
[1735578576275,0.90752911,695.4,694.94,1.06987589]
[1735578576575,0.90752911,695.39,694.94,1.06987589]
[1735578576977,0.90752911,695.38,694.98,1.06987589]
[1735578577177,1.50217989,695.48,694.98,1.06987589]
[1735578577480,0.90740477,695.47,694.98,1.06987589]
[1735578577774,0.90740477,695.46,694.98,1.06987589]
[1735578577972,0.90740477,695.45,695.06,1.06987589]
[1735578578169,1.50217989,695.48,695.06,1.06987589]
[1735578579176,0.90738399,695.47,695.09,1.06987589]
[1735578579573,0.90738399,695.46,695.09,1.06987589]
[1735578580178,0.90738399,695.45,695.09,1.06987589]
[1735578580379,0.90738399,695.44,695.09,1.06987589]
[1735578580580,0.90738399,695.44,695.1,1.06987589]
[1735578580879,0.90738399,695.43,695.1,1.06987589]
[1735578581380,0.90738399,695.42,695.1,1.06987589]
[1735578581979,2.40945041,695.41,695.1,1.06987589]
[1735578582480,0.90738399,695.4,695.07,1.06987589]
[1735578582781,0.90738399,695.39,695.07,1.06987589]
[1735578583180,0.90738399,695.38,695.07,1.06987589]
[1735578583379,0.90738399,695.37,695.07,1.06987589]
[1735578583681,0.90738399,695.36,695.07,1.06987589]
[1735578584075,0.90738399,695.35,694.96,1.06987589]
[1735578584274,0.90738399,695.34,694.96,1.06987589]
[1735578584782,0.90738399,695.33,694.96,1.06987589]
[1735578584982,0.90738399,695.32,694.96,1.06987589]
[1735578585377,0.90738399,695.31,694.96,1.06987589]
[1735578585581,0.90738399,695.31,694.92,1.06987589]
[1735578585782,0.90738399,695.3,694.92,1.06987589]
[1735578585982,0.90738399,695.29,694.92,1.06987589]
[1735578586376,0.90738399,695.28,694.92,1.06987589]
[1735578586781,0.90738399,695.27,694.92,1.06987589]
[1735578586982,0.90738399,695.27,694.72,1.06987589]
[1735578587182,0.90738399,695.26,694.72,1.06987589]
[1735578587783,0.90738399,695.25,694.72,1.06987589]
[1735578588079,0.90738399,695.25,694.7,1.06987589]
[1735578588280,0.90738399,695.24,694.7,1.06987589]
[1735578588484,1.50206642,695.41,694.7,1.06987589]
[1735578588878,0.90837651,695.4,694.7,1.06987589]
[1735578589184,0.90837651,695.39,694.7,1.06987589]
[1735578589381,0.90837651,695.39,694.76,1.06987589]
[1735578589582,0.90837651,695.38,694.76,1.06987589]
[1735578589987,0.90837651,695.37,694.76,1.06987589]
[1735578590179,0.90837651,695.36,694.76,1.06987589]
[1735578590378,0.90837651,695.35,694.81,1.06987589]
[1735578590984,0.90837651,695.34,694.81,1.06987589]
[1735578591184,1.50206642,695.41,694.81,1.06987589]
[1735578591387,1.50206642,695.41,694.87,1.06987589]
[1735578591587,0.90904722,695.4,694.87,1.06987589]
[1735578591886,0.90904722,695.39,694.87,1.06987589]
[1735578592282,0.90904722,695.38,694.87,1.06987589]
[1735578592486,1.50206642,695.41,694.46,1.06987589]
[1735578592487,1.50206642,695.41,695.02,1.06987589]
[1735578592682,0.90930991,695.37,695.02,1.06987589]
[1735578592882,0.90930991,695.36,695.02,1.06987589]
[1735578593281,0.90930991,695.35,695.02,1.06987589]
[1735578593483,0.90930991,695.34,695.02,1.06987589]
[1735578593687,0.90930991,695.34,694.93,1.06987589]
[1735578593886,0.90930991,695.33,694.93,1.06987589]
[1735578594186,0.90930991,695.32,694.93,1.06987589]
[1735578594487,0.90930991,695.31,694.93,1.06987589]
[1735578594691,0.90930991,695.3,694.93,1.06987589]
[1735578594988,1.50206642,695.41,694.91,1.06987589]
[1735578595284,0.91020898,695.4,694.91,1.06987589]
[1735578595691,0.91020898,695.39,694.91,1.06987589]
[1735578596089,1.50206642,695.41,694.92,1.06987589]
[1735578596090,0.91020898,695.38,694.92,1.06987589]
[1735578596392,0.91020898,695.37,694.92,1.06987589]
[1735578596988,0.91020898,695.36,694.92,1.06987589]
[1735578597185,0.91020898,695.35,694.94,1.06987589]
[1735578597592,0.91020898,695.34,694.94,1.06987589]
[1735578598187,0.91020898,695.33,694.94,1.06987589]
[1735578598388,0.91020898,695.33,694.86,1.06987589]
[1735578598693,0.91020898,695.32,694.86,1.06987589]
[1735578598893,0.91020898,695.31,694.86,1.06987589]
[1735578599191,0.91020898,695.3,694.86,1.06987589]
[1735578599391,0.91020898,695.29,694.86,1.06987589]
[1735578599793,0.91020898,695.28,694.86,1.06987589]
[1735578600292,0.91020898,695.27,694.86,1.06987589]
[1735578600494,0.91020898,695.26,694.86,1.06987589]
[1735578600692,0.91020898,695.26,694.85,1.06987589]
[1735578600893,0.91020898,695.25,694.85,1.06987589]
[1735578601094,0.91020898,695.24,694.85,1.06987589]
[1735578601495,0.91020898,695.23,694.85,1.06987589]
[1735578601895,0.91020898,695.22,694.85,1.06987589]
[1735578602099,0.91020898,695.21,694.94,1.06987589]
[1735578602498,0.91020898,695.2,694.94,1.06987589]
[1735578602799,0.91020898,695.19,694.96,1.06987589]
[1735578603193,0.91020898,695.18,694.96,1.06987589]
[1735578603393,0.91020898,695.17,694.96,1.06987589]
[1735578603795,0.91020898,695.16,694.96,1.06987589]
[1735578603994,0.91020898,695.16,694.95,1.06987589]
[1735578604295,1.50213126,695.53,694.95,1.06987589]
[1735578604800,0.91412564,695.52,694.95,1.06987589]
[1735578605208,0.91412564,695.51,694.95,1.06987589]
[1735578605497,0.91412564,695.5,694.95,1.06987589]
[1735578605801,0.91412564,695.49,694.95,1.06987589]
[1735578606101,0.91412564,695.48,694.95,1.06987589]
[1735578606402,0.91412564,695.47,694.95,1.06987589]
[1735578606708,0.91412564,695.47,694.98,1.06987589]
[1735578607001,0.91412564,695.46,694.98,1.06987589]
[1735578607404,0.91412564,695.45,694.98,1.06987589]
[1735578607703,0.91412564,695.44,695.01,1.06987589]
[1735578608100,0.91412564,695.43,695.01,1.06987589]
[1735578608507,0.91412564,695.42,695.01,1.06987589]
[1735578608893,0.91412564,695.42,694.21,2.18432994]
[1735578608894,0.91412564,695.41,695.1,1.06987589]
[1735578609102,0.91412564,695.4,695.1,1.06987589]
[1735578609602,1.50178013,695.68,695.1,1.06987589]
[1735578609802,0.91305747,695.67,695.1,1.06987589]
[1735578610001,0.91305747,695.67,695.07,1.06987589]
[1735578610201,0.91305747,695.66,695.07,1.06987589]
[1735578610401,0.91305747,695.65,695.07,1.06987589]
[1735578610703,0.91305747,695.64,695.07,1.06987589]
[1735578611202,0.91305747,695.63,695.03,1.06987589]
[1735578611802,0.91305747,695.62,695.03,1.06987589]
[1735578612001,0.91305747,695.61,695.03,1.06987589]
[1735578612401,0.91305747,695.6,695.03,1.06987589]
[1735578612596,0.91305747,695.6,695.05,1.06987589]
[1735578612799,1.50147775,695.85,695.05,1.06987589]
[1735578612998,0.91163519,695.84,695.05,1.06987589]
[1735578613398,0.91163519,695.83,695.05,1.06987589]
[1735578613599,0.91163519,695.82,695.05,1.06987589]
[1735578613797,0.91163519,695.81,695.05,1.06987589]
[1735578614002,0.91163519,695.8,695.05,1.06987589]
[1735578614204,0.91163519,695.8,695.25,1.06987589]
[1735578614403,0.91163519,695.79,695.25,1.06987589]
[1735578614601,0.91163519,695.78,695.25,1.06987589]
[1735578614802,0.91163519,695.77,695.25,1.06987589]
[1735578615203,0.91163519,695.76,695.17,1.06987589]
[1735578615403,0.91163519,695.75,695.17,1.06987589]
[1735578615808,0.91163519,695.74,695.17,1.06987589]
[1735578616004,0.91163519,695.73,695.17,1.06987589]
[1735578616305,0.91163519,695.72,695.17,1.06987589]
[1735578616502,0.91163519,695.72,695.13,1.06987589]
[1735578616699,0.91163519,695.71,695.13,1.06987589]
[1735578617103,0.91163519,695.7,695.13,1.06987589]
[1735578617305,0.91163519,695.7,695.08,1.06987589]
[1735578617701,0.91163519,695.69,695.08,1.06987589]
[1735578618207,0.91163519,695.68,695.08,1.06987589]
[1735578618407,0.91163519,695.67,695.08,1.06987589]
[1735578618708,0.91163519,695.67,695.02,1.06987589]
[1735578619006,1.50147775,695.85,695.02,1.06987589]
[1735578619007,0.91163519,695.66,695.02,1.06987589]
[1735578619402,0.91163519,695.65,695.02,1.06987589]
[1735578619804,0.91163519,695.64,695.04,1.06987589]
[1735578620009,0.91163519,695.63,695.04,1.06987589]
[1735578620307,1.50147775,695.85,695.04,1.06987589]
[1735578620709,0.90964293,695.84,695.04,1.06987589]
[1735578620911,0.90964293,695.83,695.04,1.06987589]
[1735578621109,0.90964293,695.83,695.05,1.06987589]
[1735578621305,0.90964293,695.82,695.05,1.06987589]
[1735578621808,1.50117549,696.05,695.05,1.06987589]
[1735578622507,0.90883607,696.04,695.18,1.06987589]
[1735578623109,0.90883607,696.03,695.18,1.06987589]
[1735578623509,0.90883607,696.02,695.21,1.06987589]
[1735578623705,0.90883607,696.01,695.21,1.06987589]
[1735578624103,0.90883607,696.0,695.21,1.06987589]
[1735578624309,0.90883607,695.99,695.21,1.06987589]
[1735578624608,0.90883607,695.98,695.21,1.06987589]
[1735578624811,0.90883607,695.97,695.18,1.06987589]
[1735578625210,0.90883607,695.96,695.18,1.06987589]
[1735578625411,0.90883607,695.95,695.18,1.06987589]
[1735578625806,1.50117549,696.05,694.7,2.04146765]
[1735578625807,0.90883607,695.94,695.12,1.06987589]
[1735578626004,0.90883607,695.93,695.12,1.06987589]
[1735578626408,0.90883607,695.92,695.12,1.06987589]
[1735578626811,0.90883607,695.91,695.12,1.06987589]
[1735578627203,0.90883607,695.9,695.12,1.06987589]
[1735578627710,0.90883607,695.89,695.12,1.06987589]
[1735578627908,0.90883607,695.88,695.11,1.06987589]
[1735578628303,0.90883607,695.87,695.11,1.06987589]
[1735578628511,0.90883607,695.86,695.11,1.06987589]
[1735578628812,0.90883607,695.85,695.11,1.06987589]
[1735578629207,0.90883607,695.84,695.11,1.06987589]
[1735578629511,0.90883607,695.83,695.11,1.06987589]
[1735578629711,0.90883607,695.82,695.11,1.06987589]
[1735578629908,0.90883607,695.82,695.1,1.06987589]
[1735578630104,0.90883607,695.81,695.1,1.06987589]
[1735578630608,1.50117549,696.05,695.1,1.06987589]
[1735578631109,0.90684219,696.04,695.1,1.06987589]
[1735578631312,0.90684219,696.04,695.11,1.06987589]
[1735578631511,0.90684219,696.03,695.11,1.06987589]
[1735578632010,0.90684219,696.02,695.11,1.06987589]
[1735578632211,0.90684219,696.02,695.17,1.06987589]
[1735578632413,0.90684219,696.01,695.17,1.06987589]
[1735578632810,0.90684219,696.0,695.17,1.06987589]
[1735578633013,0.90684219,695.99,695.17,1.06987589]
[1735578633514,0.90684219,695.98,695.17,1.06987589]
[1735578633907,0.90684219,695.97,695.17,1.06987589]
[1735578634306,0.90684219,695.96,695.17,1.06987589]
[1735578634611,0.90684219,695.95,695.17,1.06987589]
[1735578634813,0.90684219,695.94,695.23,1.06987589]
[1735578635515,0.90684219,695.93,695.23,1.06987589]
[1735578635716,0.90684219,695.93,695.26,1.06987589]
[1735578635918,0.90684219,695.92,695.26,1.06987589]
[1735578636117,0.90684219,695.91,695.26,1.06987589]
[1735578636313,1.50117549,696.05,695.26,1.06987589]
[1735578636618,1.50117549,696.05,694.74,2.18432994]
[1735578636619,0.90591505,696.04,695.28,1.06987589]
[1735578637014,0.90591505,696.03,695.28,1.06987589]
[1735578637216,0.90591505,696.02,695.28,1.06987589]
[1735578637416,0.90591505,696.01,695.28,1.06987589]
[1735578637818,0.90591505,696.01,695.35,1.06987589]
[1735578638013,0.90591505,696.0,695.35,1.06987589]
[1735578638412,0.63479849,697.01,695.35,1.06987589]
[1735578638616,1.06616021,697.02,695.35,1.06987589]
[1735578638818,1.50079784,696.12,695.38,1.06987589]
[1735578639119,0.90546564,696.11,695.38,1.06987589]
[1735578639518,1.50023711,696.51,695.38,1.06987589]
[1735578639914,0.90512375,696.5,695.38,1.06987589]
[1735578640113,0.90512375,696.5,695.17,1.06987589]
[1735578640114,0.90512375,696.5,695.46,1.06987589]
[1735578640418,0.90512375,696.49,695.46,1.06987589]
[1735578640815,0.90512375,696.48,695.46,1.06987589]
[1735578641216,0.90512375,696.47,695.46,1.06987589]